[Event "XVI Open Internacional Villa de Ibi"]
[Site "Ibi, Spain"]
[Date "2018.09.09"]
[Round "6.1"]
[White "Granero Roca, Antonio"]
[Black "Plaskett, H James"]
[Result "1-0"]
[TimeControl "15' + 2'' por jugada"]
[WhiteElo "2370"]
[BlackElo "2450"]

1. Nf3 {[%clk 00:15:02]} {[%emt 00:00:14]} Nf6 {[%clk 00:14:58]} 2. g3 {[%clk
00:15:03]} d5 {[%clk 00:14:58]} 3. Bg2 {[%clk 00:15:03]} c6 {[%clk 00:14:59]} 4.
O-O {[%clk 00:15:02]} {[%emt 00:00:08]} Bf5 {[%clk 00:15:00]} {[%emt 00:00:04]}
5. d3 {[%clk 00:15:03]} e6 {[%clk 00:14:59]} {[%emt 00:00:13]} 6. Nbd2 {[%clk
00:15:03]} Be7 {[%clk 00:14:54]} 7. c4 {[%clk 00:15:03]} O-O {[%clk 00:14:29]}
{[%emt 00:00:22]} 8. b3 {[%clk 00:15:03]} {[%emt 00:00:10]} a5 {[%clk
00:14:29]} 9. a3 {[%clk 00:15:04]} h6 {[%clk 00:13:56]} {[%emt 00:00:29]} 10.
Bb2 {[%clk 00:15:05]} {[%emt 00:00:09]} Na6 {[%clk 00:13:50]} 11. Qc2 {[%clk
00:14:53]} {[%emt 00:00:14]} Bh7 {[%clk 00:13:37]} {[%emt 00:00:16]} 12. Rfe1
{[%clk 00:14:29]} {[%emt 00:00:27]} Rc8 {[%clk 00:12:58]} {[%emt 00:00:40]} 13.
Ne5 {[%clk 00:14:16]} {[%emt 00:00:23]} Bd6 {[%clk 00:11:33]} {[%emt 00:01:18]}
14. e4 {[%clk 00:13:59]} {[%emt 00:00:29]} b5 {[%clk 00:10:55]} {[%emt
00:00:31]} 15. h3 {[%clk 00:13:26]} {[%emt 00:00:40]} bxc4 {[%clk 00:09:52]}
{[%emt 00:01:04]} 16. bxc4 {[%clk 00:13:20]} {[%emt 00:00:08]} Nc5 {[%clk
00:08:17]} {[%emt 00:02:09]} 17. Rac1 {[%clk 00:11:55]} {[%emt 00:01:21]} Qc7
{[%clk 00:05:46]} {[%emt 00:02:03]} 18. Ng4 {[%clk 00:11:53]} {[%emt 00:00:36]}
Nxg4 {[%clk 00:05:01]} {[%emt 00:00:21]} 19. hxg4 {[%clk 00:11:53]} dxe4 {[%clk
00:04:30]} {[%emt 00:00:47]} 20. Nxe4 {[%clk 00:11:33]} {[%emt 00:00:04]} Nxe4
{[%clk 00:04:29]} {[%emt 00:00:04]} 21. dxe4 {[%clk 00:11:33]} {[%emt
00:00:08]} Rfd8 {[%clk 00:02:48]} {[%emt 00:02:00]} 22. c5 {[%clk 00:11:06]}
{[%emt 00:00:14]} Be5 {[%clk 00:02:41]} {[%emt 00:00:08]} 23. Red1 {[%clk
00:10:42]} {[%emt 00:00:17]} Bg6 {[%clk 00:02:34]} {[%emt 00:00:27]} 24. Bc3
{[%clk 00:10:36]} Rb8 {[%clk 00:02:24]} {[%emt 00:00:11]} 25. f4 {[%clk
00:09:33]} {[%emt 00:00:59]} Bxc3 {[%clk 00:02:13]} {[%emt 00:00:52]} 26. Qxc3
{[%clk 00:09:33]} a4 {[%clk 00:02:12]} 27. Kh2 {[%clk 00:08:42]} {[%emt
00:00:22]} Rb3 {[%clk 00:02:08]} {[%emt 00:00:04]} 28. Qe5 {[%clk 00:08:39]}
{[%emt 00:00:05]} Qa5 {[%clk 00:01:23]} {[%emt 00:00:44]} 29. Rxd8+ {[%clk
00:08:06]} {[%emt 00:00:58]} Qxd8 {[%clk 00:01:25]} {[%emt 00:00:04]} 30. Qd6
{[%clk 00:08:07]} Qc8 {[%clk 00:00:29]} {[%emt 00:00:50]} 31. f5 {[%clk
00:07:55]} Bh7 {[%clk 00:00:20]} {[%emt 00:00:07]} 32. Rd1 {[%clk 00:07:55]}
{[%emt 00:00:10]} Rb8 {[%clk 00:00:19]} {[%emt 00:00:19]} 33. Qe7 {[%clk
00:07:39]} {[%emt 00:00:06]} Qf8 {[%clk 00:00:17]} 34. Qc7 {[%clk 00:06:58]}
{[%emt 00:00:45]} Rc8 {[%clk 00:00:12]} 35. Qd6 {[%clk 00:06:32]} {[%emt
00:00:25]} Re8 {[%clk 00:00:06]} {[%emt 00:00:19]} 36. Rd4 {[%clk 00:06:18]}
{[%emt 00:00:05]} h5 {[%emt 00:00:26]} 37. Qxf8+ {[%clk 00:06:08]} {[%emt
00:00:14]} Kxf8 {[%clk 00:00:08]} 38. fxe6 {[%clk 00:06:07]} hxg4 {[%clk
00:00:07]} 39. exf7 {[%clk 00:06:04]} Re5 {[%clk 00:00:07]} 40. Rc4 {[%clk
00:05:39]} {[%emt 00:00:14]} Kxf7 {[%clk 00:00:08]} {[%emt 00:00:30]} 41. Kg1
{[%clk 00:05:40]} Ke6 {[%clk 00:00:07]} 42. Kf2 {[%clk 00:05:40]} {[%emt
00:00:03]} Rh5 {[%clk 00:00:06]} 43. Ke3 {[%clk 00:05:28]} Rh2 44. Bf1 {[%clk
00:05:28]} Ra2 45. Rxa4 {[%clk 00:05:28]} {Bandera} 1-0

[Event "XVI Open Internacional Villa de Ibi"]
[Site "Ibi, Spain"]
[Date "2018.09.09"]
[Round "6.2"]
[White "Ibanez Aullana, Ramon"]
[Black "Cruz Lledo, Pablo"]
[Result "0-1"]
[TimeControl "15' + 2'' por jugada"]
[WhiteElo "2301"]
[BlackElo "2436"]

1. e4 {[%clk 00:15:03]} c6 {[%clk 00:15:01]} 2. Nc3 {[%clk 00:15:00]} {[%emt
00:00:10]} d5 {[%clk 00:14:59]} {[%emt 00:00:05]} 3. Nf3 {[%clk 00:15:00]} dxe4
{[%clk 00:14:55]} {[%emt 00:00:07]} 4. Nxe4 {[%clk 00:15:00]} Nf6 {[%clk
00:14:55]} 5. Nxf6+ {[%clk 00:15:00]} {[%emt 00:00:12]} exf6 {[%clk 00:14:55]}
6. d4 {[%clk 00:14:51]} {[%emt 00:00:04]} Bd6 {[%clk 00:14:55]} {[%emt
00:00:05]} 7. c3 {[%clk 00:14:32]} {[%emt 00:00:16]} O-O {[%clk 00:14:52]}
{[%emt 00:00:05]} 8. Qc2 {[%clk 00:14:25]} {[%emt 00:00:09]} Re8+ {[%clk
00:14:47]} {[%emt 00:00:07]} 9. Be3 {[%clk 00:14:24]} f5 {[%clk 00:14:31]}
{[%emt 00:00:26]} 10. O-O-O {[%clk 00:14:20]} {[%emt 00:00:14]} f4 {[%clk
00:13:55]} {[%emt 00:00:25]} 11. Bd2 {[%clk 00:14:20]} {[%emt 00:00:05]} Nd7
{[%clk 00:13:54]} {[%emt 00:00:05]} 12. Bd3 {[%clk 00:13:49]} {[%emt 00:00:32]}
Nf8 {[%clk 00:13:52]} {[%emt 00:00:05]} 13. Ne5 {[%clk 00:13:26]} {[%emt
00:00:20]} Qf6 {[%clk 00:13:44]} {[%emt 00:00:10]} 14. g3 {[%clk 00:13:11]}
{[%emt 00:00:18]} f3 {[%clk 00:13:20]} {[%emt 00:00:25]} 15. h4 {[%clk
00:12:41]} {[%emt 00:00:36]} h6 {[%clk 00:12:40]} {[%emt 00:00:38]} 16. Kb1
{[%clk 00:10:30]} {[%emt 00:02:13]} Be6 {[%clk 00:12:10]} {[%emt 00:00:36]} 17.
g4 {[%clk 00:09:14]} {[%emt 00:01:22]} Bxe5 {[%clk 00:11:20]} {[%emt 00:00:43]}
18. g5 {[%clk 00:09:15]} Qe7 {[%clk 00:11:14]} {[%emt 00:00:10]} 19. dxe5
{[%clk 00:09:09]} {[%emt 00:00:07]} h5 {[%clk 00:11:12]} {[%emt 00:00:07]} 20.
g6 {[%clk 00:08:56]} {[%emt 00:00:17]} fxg6 {[%clk 00:10:56]} {[%emt 00:00:15]}
21. Rde1 {[%clk 00:07:24]} {[%emt 00:01:36]} Qf7 {[%clk 00:10:51]} {[%emt
00:00:06]} 22. Ka1 {[%clk 00:06:19]} {[%emt 00:01:04]} Rad8 {[%clk 00:10:23]}
{[%emt 00:00:35]} 23. Rhg1 {[%clk 00:06:08]} {[%emt 00:00:09]} Bg4 {[%clk
00:10:22]} {[%emt 00:00:06]} 24. b3 {[%clk 00:04:54]} {[%emt 00:01:13]} b5
{[%clk 00:10:07]} {[%emt 00:00:17]} 25. Re4 {[%clk 00:03:41]} {[%emt 00:01:15]}
Bf5 {[%clk 00:08:49]} {[%emt 00:01:21]} 26. Rd4 {[%clk 00:03:41]} Bxd3 {[%clk
00:08:17]} {[%emt 00:00:41]} 27. Qxd3 {[%clk 00:03:40]} Ne6 {[%clk 00:08:10]}
{[%emt 00:00:08]} 28. Rd6 {[%clk 00:03:29]} {[%emt 00:00:11]} Qf5 {[%clk
00:07:09]} {[%emt 00:01:06]} 29. Qxf5 {[%clk 00:01:26]} {[%emt 00:02:04]} gxf5
{[%clk 00:07:09]} {[%emt 00:00:05]} 30. Bg5 {[%clk 00:01:26]} Rc8 {[%clk
00:05:22]} {[%emt 00:01:46]} 31. Be3 {[%clk 00:00:50]} {[%emt 00:00:37]} Rc7
{[%clk 00:05:13]} {[%emt 00:00:12]} 32. b4 {[%clk 00:00:31]} {[%emt 00:00:21]}
Ree7 {[%clk 00:04:38]} {[%emt 00:00:37]} 33. Kb2 {[%clk 00:00:24]} {[%emt
00:00:08]} c5 {[%clk 00:04:33]} {[%emt 00:00:08]} 34. bxc5 {[%clk 00:00:16]}
{[%emt 00:00:10]} Nxc5 {[%clk 00:04:33]} 35. Bd4 {[%clk 00:00:14]} {[%emt
00:00:07]} Nd3+ {[%clk 00:04:22]} {[%emt 00:00:16]} 36. Kb3 {[%emt 00:00:04]}
Nxe5 {[%clk 00:04:18]} {[%emt 00:00:07]} 37. Rg5 {[%clk 00:00:07]} {[%emt
00:00:05]} Nc6 {[%clk 00:01:48]} {[%emt 00:02:34]} 38. Rxf5 {[%clk 00:00:06]}
b4 {[%clk 00:01:47]} {[%emt 00:00:04]} 39. Kb2 {[%clk 00:00:03]} {[%emt
00:00:05]} Red7 {[%clk 00:01:06]} {[%emt 00:00:40]} 40. Rxd7 {[%clk 00:00:03]}
Rxd7 {[%clk 00:01:07]} {[%emt 00:00:06]} 41. Be3 {[%clk 00:00:04]} bxc3+ {[%clk
00:00:54]} {[%emt 00:00:13]} 42. Kxc3 {[%clk 00:00:05]} g6 {[%clk 00:00:55]}
{[%emt 00:00:05]} 43. Rxf3 {[%clk 00:00:05]} Rc7 {[%clk 00:00:49]} {[%emt
00:00:10]} 44. Rf6 {[%clk 00:00:06]} Ne7+ {[%clk 00:00:45]} {[%emt 00:00:04]}
45. Kd2 {[%clk 00:00:06]} {[%emt 00:00:05]} Kg7 {[%clk 00:00:42]} {[%emt
00:00:05]} 46. Bd4 {[%clk 00:00:07]} Kg8 {[%clk 00:00:42]} 47. Rd6 {[%clk
00:00:06]} {[%emt 00:00:05]} Kf7 {[%clk 00:00:40]} {[%emt 00:00:04]} 48. Rf6+
{[%clk 00:00:07]} Ke8 {[%clk 00:00:41]} {[%emt 00:00:05]} 49. Be5 {[%clk
00:00:07]} Rc5 {[%clk 00:00:40]} 50. Bd4 {[%clk 00:00:06]} {[%emt 00:00:06]}
Ra5 {[%clk 00:00:41]} 51. Ke1 {[%clk 00:00:04]} {[%emt 00:00:05]} Rxa2 {[%emt
00:00:05]} 52. Bc5 {[%clk 00:00:05]} Nd5 {[%clk 00:00:27]} {[%emt 00:00:11]} 53.
Rxg6 {[%clk 00:00:05]} Nf4 {[%clk 00:00:28]} {[%emt 00:00:06]} 54. Rg5 {[%clk
00:00:04]} {[%emt 00:00:04]} Ra5 {[%clk 00:00:12]} {[%emt 00:00:14]} 55. Be3
{[%clk 00:00:03]} {[%emt 00:00:06]} Rxg5 {[%clk 00:00:12]} 56. hxg5 {[%clk
00:00:04]} {[%emt 00:00:05]} Ng2+ {[%clk 00:00:13]} 57. Kd2 {[%clk 00:00:05]}
Nxe3 58. Kxe3 {[%clk 00:00:06]} a5 {[%clk 00:00:13]} {[%emt 00:00:04]} 59. f4
{[%clk 00:00:07]} a4 {[%clk 00:00:14]} {[%emt 00:00:04]} 60. Kd4 {[%clk
00:00:08]} a3 {[%clk 00:00:14]} 61. Kc3 {[%clk 00:00:05]} {[%emt 00:00:08]} h4
{[%clk 00:00:15]} 62. g6 {[%clk 00:00:07]} 0-1

[Event "XVI Open Internacional Villa de Ibi"]
[Site "Ibi, Spain"]
[Date "2018.09.09"]
[Round "6.3"]
[White "Garcia, Jhoel"]
[Black "Diaz Velandia, Jose Manuel"]
[Result "1-0"]
[TimeControl "15' + 2'' por jugada"]
[WhiteElo "2250"]
[BlackElo "2368"]

1. e4 {[%clk 00:13:18]} c6 {[%clk 00:12:53]} {[%emt 00:01:50]} 2. d4 {[%clk
00:13:05]} {[%emt 00:00:23]} d5 {[%clk 00:12:54]} 3. Nc3 {[%clk 00:13:03]}
{[%emt 00:00:09]} dxe4 {[%clk 00:12:55]} 4. Nxe4 {[%clk 00:13:04]} Nf6 {[%clk
00:12:55]} 5. Nxf6+ {[%clk 00:13:04]} {[%emt 00:00:03]} exf6 {[%clk 00:12:56]}
6. c3 {[%clk 00:12:59]} {[%emt 00:00:03]} Bd6 {[%clk 00:12:56]} 7. Bd3 {[%clk
00:12:57]} {[%emt 00:00:06]} O-O {[%clk 00:12:56]} 8. Ne2 {[%clk 00:12:57]}
{[%emt 00:00:03]} Bg4 {[%clk 00:12:32]} {[%emt 00:00:47]} 9. Qc2 {[%clk
00:12:53]} {[%emt 00:00:03]} h6 {[%clk 00:11:49]} {[%emt 00:00:25]} 10. Be3
{[%clk 00:11:49]} {[%emt 00:01:05]} Nd7 {[%clk 00:11:47]} {[%emt 00:00:24]} 11.
h3 {[%clk 00:11:49]} Be6 {[%clk 00:11:44]} 12. Nf4 {[%clk 00:11:38]} {[%emt
00:00:12]} Re8 {[%clk 00:11:02]} {[%emt 00:00:32]} 13. Nxe6 {[%clk 00:11:37]}
{[%emt 00:00:18]} fxe6 {[%clk 00:10:52]} {[%emt 00:00:03]} 14. O-O {[%clk
00:11:14]} {[%emt 00:00:34]} Nf8 {[%clk 00:10:52]} 15. Rfe1 {[%clk 00:11:07]}
Qc7 {[%clk 00:10:43]} {[%emt 00:00:15]} 16. Re2 {[%clk 00:10:43]} {[%emt
00:00:18]} e5 {[%clk 00:10:23]} {[%emt 00:00:22]} 17. dxe5 {[%clk 00:10:28]}
{[%emt 00:00:18]} Rxe5 {[%clk 00:10:08]} {[%emt 00:00:16]} 18. Rae1 {[%clk
00:10:21]} {[%emt 00:00:25]} Kh8 {[%clk 00:09:37]} {[%emt 00:00:18]} 19. b3
{[%clk 00:10:13]} {[%emt 00:00:21]} Rae8 {[%clk 00:09:27]} {[%emt 00:00:03]} 20.
Bd4 {[%clk 00:10:09]} {[%emt 00:00:07]} Rxe2 {[%clk 00:09:20]} {[%emt
00:00:05]} 21. Rxe2 {[%clk 00:10:10]} {[%emt 00:00:14]} Rxe2 {[%clk 00:09:19]}
22. Qxe2 {[%clk 00:10:06]} c5 {[%clk 00:09:12]} {[%emt 00:00:07]} 23. Be3
{[%clk 00:10:07]} Be5 {[%clk 00:08:57]} {[%emt 00:00:27]} 24. c4 {[%clk
00:09:31]} {[%emt 00:00:30]} b6 {[%clk 00:08:45]} {[%emt 00:00:12]} 25. Be4
{[%clk 00:09:30]} {[%emt 00:00:05]} Qd7 {[%clk 00:08:41]} {[%emt 00:00:07]} 26.
Bd5 {[%clk 00:09:31]} {[%emt 00:00:03]} Qf5 {[%clk 00:08:39]} 27. Qd1 {[%clk
00:08:35]} {[%emt 00:01:07]} Kh7 {[%clk 00:06:15]} {[%emt 00:02:16]} 28. Bf7
{[%clk 00:08:17]} {[%emt 00:00:31]} Qd7 {[%clk 00:06:00]} {[%emt 00:00:08]} 29.
Qb1+ {[%clk 00:08:17]} {[%emt 00:00:03]} f5 {[%clk 00:05:26]} {[%emt 00:00:32]}
30. Bd5 {[%clk 00:08:02]} {[%emt 00:00:17]} Ng6 {[%clk 00:04:12]} {[%emt
00:01:16]} 31. Qd3 {[%clk 00:07:35]} {[%emt 00:00:29]} Kh8 {[%clk 00:03:58]}
{[%emt 00:00:19]} 32. a3 {[%clk 00:07:16]} {[%emt 00:00:31]} Ne7 {[%clk
00:03:28]} {[%emt 00:00:40]} 33. b4 {[%clk 00:07:03]} cxb4 {[%clk 00:03:08]}
{[%emt 00:00:17]} 34. axb4 {[%clk 00:07:04]} {[%emt 00:00:07]} Qd6 {[%clk
00:03:09]} {[%emt 00:00:07]} 35. b5 {[%clk 00:06:57]} Qb4 {[%clk 00:02:17]}
{[%emt 00:00:51]} 36. g3 {[%clk 00:06:12]} {[%emt 00:00:47]} Qd6 {[%clk
00:02:10]} {[%emt 00:00:09]} 37. Bc1 {[%clk 00:06:02]} {[%emt 00:00:13]} Qb4
{[%clk 00:01:04]} {[%emt 00:01:11]} 38. Ba3 {[%clk 00:05:58]} {[%emt 00:00:14]}
Qe1+ {[%clk 00:00:50]} {[%emt 00:00:07]} 39. Kg2 {[%clk 00:05:59]} {[%emt
00:00:03]} Bf6 {[%clk 00:00:34]} {[%emt 00:00:13]} 40. Bf3 {[%clk 00:05:18]}
{[%emt 00:01:02]} Kh7 {[%clk 00:00:08]} {[%emt 00:00:09]} 41. Qd7 {[%clk
00:04:56]} {[%emt 00:00:24]} Qe5 {[%clk 00:00:05]} {[%emt 00:00:19]} 42. Qxa7
{[%clk 00:04:35]} {[%emt 00:00:08]} Ng6 {[%clk 00:00:06]} {[%emt 00:00:18]} 43.
Qf7 {[%clk 00:04:14]} {[%emt 00:00:07]} f4 {[%clk 00:00:06]} {[%emt 00:00:09]}
44. Bd5 {[%clk 00:04:09]} {[%emt 00:00:03]} Ne7 {[%clk 00:00:05]} {[%emt
00:00:04]} 45. gxf4 {[%clk 00:02:41]} {[%emt 00:01:26]} Qe2 {[%clk 00:00:07]}
46. Qe6 {[%clk 00:02:29]} {[%emt 00:01:03]} Qxe6 {[%clk 00:00:04]} 47. Bxe6
{[%clk 00:02:30]} Kg6 {[%clk 00:00:03]} 48. c5 {[%clk 00:02:24]} bxc5 {[%clk
00:00:03]} 49. Bxc5 {[%clk 00:02:24]} Nf5 {[%clk 00:00:04]} 50. Bxf5+ {[%clk
00:02:03]} Kxf5 {[%clk 00:00:05]} 51. b6 {[%clk 00:02:04]} {[%emt 00:00:03]}
Bd8 {[%clk 00:00:04]} 52. b7 {[%clk 00:02:05]} {[%emt 00:00:04]} 1-0

[Event "XVI Open Internacional Villa de Ibi"]
[Site "Ibi, Spain"]
[Date "2018.09.09"]
[Round "6.4"]
[White "Serarols Mabras, Bernat"]
[Black "Galvan, Jesus"]
[Result "1-0"]
[TimeControl "15' + 2'' por jugada"]
[WhiteElo "2367"]
[BlackElo "2185"]

1. d4 {[%clk 00:15:03]} {[%emt 00:00:03]} d6 {[%clk 00:15:03]} 2. Nf3 {[%clk
00:15:03]} {[%emt 00:00:03]} Bg4 {[%clk 00:15:03]} 3. g3 {[%clk 00:15:03]}
{[%emt 00:00:03]} Bxf3 {[%clk 00:14:53]} {[%emt 00:00:09]} 4. exf3 {[%clk
00:15:03]} {[%emt 00:00:10]} c6 {[%clk 00:14:54]} 5. c4 {[%clk 00:15:03]} Nf6
{[%clk 00:14:53]} 6. Nc3 {[%clk 00:15:02]} e6 {[%clk 00:14:53]} {[%emt
00:00:46]} 7. Bg2 {[%clk 00:14:47]} d5 {[%clk 00:14:52]} 8. O-O {[%clk
00:14:37]} Be7 {[%clk 00:14:52]} 9. f4 {[%clk 00:14:16]} {[%emt 00:00:13]} dxc4
{[%clk 00:14:21]} {[%emt 00:00:34]} 10. Be3 {[%clk 00:14:12]} {[%emt 00:00:13]}
O-O {[%clk 00:14:21]} {[%emt 00:00:04]} 11. Qe2 {[%clk 00:14:11]} Nbd7 {[%clk
00:13:41]} {[%emt 00:00:35]} 12. Qxc4 {[%clk 00:14:09]} {[%emt 00:00:07]} Nb6
{[%clk 00:13:41]} 13. Qd3 {[%clk 00:13:56]} {[%emt 00:00:38]} g6 {[%clk
00:13:05]} {[%emt 00:00:14]} 14. Rad1 {[%clk 00:13:44]} {[%emt 00:00:16]} Re8
{[%clk 00:13:05]} {[%emt 00:00:04]} 15. h4 {[%clk 00:13:44]} {[%emt 00:00:04]}
Bf8 {[%clk 00:12:58]} {[%emt 00:00:04]} 16. Bf3 {[%clk 00:13:39]} {[%emt
00:00:10]} h5 {[%clk 00:12:54]} {[%emt 00:00:04]} 17. Kg2 {[%clk 00:12:51]}
{[%emt 00:00:49]} Bg7 {[%clk 00:12:53]} {[%emt 00:00:36]} 18. Rfe1 {[%clk
00:12:43]} Nbd5 {[%clk 00:12:51]} 19. Bc1 {[%clk 00:12:22]} {[%emt 00:00:04]}
Qa5 {[%clk 00:12:31]} {[%emt 00:00:22]} 20. a3 {[%clk 00:12:15]} {[%emt
00:00:47]} Rad8 {[%clk 00:11:53]} {[%emt 00:00:04]} 21. Qc2 {[%clk 00:11:57]}
{[%emt 00:00:18]} Ne7 {[%clk 00:11:46]} {[%emt 00:00:26]} 22. b4 {[%clk
00:11:37]} {[%emt 00:00:07]} Qc7 {[%clk 00:11:38]} {[%emt 00:00:10]} 23. Bb2
{[%clk 00:10:44]} {[%emt 00:00:53]} Qb8 {[%clk 00:11:03]} {[%emt 00:00:50]} 24.
Na4 {[%clk 00:10:02]} {[%emt 00:00:31]} Nf5 {[%clk 00:10:48]} {[%emt 00:00:38]}
25. Nc5 {[%clk 00:09:50]} Nd5 {[%clk 00:10:38]} {[%emt 00:00:08]} 26. Nd3
{[%clk 00:08:48]} {[%emt 00:01:02]} a5 {[%clk 00:10:04]} {[%emt 00:00:36]} 27.
bxa5 {[%clk 00:08:35]} {[%emt 00:00:17]} Qa8 {[%clk 00:10:00]} {[%emt
00:00:05]} 28. Nc5 {[%clk 00:08:25]} {[%emt 00:00:10]} Nc7 {[%clk 00:09:02]}
{[%emt 00:01:01]} 29. Qa4 {[%clk 00:07:22]} {[%emt 00:01:05]} Nb5 {[%clk
00:08:52]} {[%emt 00:00:15]} 30. a6 {[%clk 00:07:01]} {[%emt 00:00:23]} Nbxd4
{[%clk 00:08:30]} {[%emt 00:00:20]} 31. Bxd4 {[%clk 00:06:31]} {[%emt
00:00:36]} b5 {[%clk 00:08:30]} 32. Qa5 {[%clk 00:03:53]} {[%emt 00:02:40]}
Rxd4 {[%clk 00:07:25]} {[%emt 00:01:15]} 33. Qb6 {[%clk 00:03:24]} {[%emt
00:00:56]} Rd5 {[%clk 00:05:31]} {[%emt 00:01:32]} 34. Bxd5 cxd5 {[%clk
00:05:31]} 35. Qb7 {[%clk 00:02:41]} {[%emt 00:01:01]} Bf8 {[%clk 00:05:21]}
{[%emt 00:00:03]} 36. Nd7 {[%clk 00:02:28]} {[%emt 00:00:03]} Nd6 {[%clk
00:04:56]} {[%emt 00:00:24]} 37. Qb6 {[%clk 00:01:16]} {[%emt 00:01:13]} Be7
{[%clk 00:04:46]} {[%emt 00:00:13]} 38. a4 {[%clk 00:00:59]} {[%emt 00:00:37]}
Rd8 {[%clk 00:04:17]} {[%emt 00:00:12]} 39. Ne5 {[%clk 00:00:42]} {[%emt
00:00:19]} 1-0

[Event "XVI Open Internacional Villa de Ibi"]
[Site "Ibi, Spain"]
[Date "2018.09.09"]
[Round "6.5"]
[White "Camarena Gimenez, Rufino"]
[Black "Nicolas Zapata, Javier"]
[Result "1/2-1/2"]
[TimeControl "15' + 2'' por jugada"]
[WhiteElo "2339"]
[BlackElo "2181"]

1. d4 {[%clk 00:15:02]} {[%emt 00:00:20]} Nf6 {[%clk 00:14:58]} 2. c4 {[%clk
00:15:02]} e5 {[%clk 00:14:55]} 3. dxe5 {[%clk 00:15:02]} Ne4 {[%clk 00:14:55]}
{[%emt 00:00:14]} 4. Nf3 {[%clk 00:14:57]} {[%emt 00:00:09]} Bb4+ {[%clk
00:14:48]} 5. Nbd2 {[%clk 00:14:40]} {[%emt 00:00:11]} Nc6 {[%clk 00:13:16]}
{[%emt 00:01:34]} 6. a3 {[%clk 00:14:34]} {[%emt 00:00:11]} Bxd2+ {[%clk
00:13:14]} 7. Bxd2 {[%clk 00:14:34]} {[%emt 00:00:08]} Qe7 {[%clk 00:13:07]}
{[%emt 00:00:10]} 8. Bf4 {[%clk 00:13:40]} {[%emt 00:00:51]} g5 {[%clk
00:09:11]} {[%emt 00:04:09]} 9. Bg3 {[%clk 00:13:23]} {[%emt 00:00:09]} Nxg3
{[%clk 00:08:57]} {[%emt 00:00:43]} 10. hxg3 {[%clk 00:13:20]} Nxe5 {[%clk
00:08:54]} 11. Qd4 {[%clk 00:11:35]} {[%emt 00:01:27]} d6 {[%clk 00:07:19]}
{[%emt 00:01:37]} 12. O-O-O {[%clk 00:11:14]} {[%emt 00:00:45]} Bf5 {[%clk
00:05:50]} {[%emt 00:01:09]} 13. e3 {[%clk 00:11:03]} {[%emt 00:00:16]} Rg8
{[%clk 00:05:33]} {[%emt 00:00:16]} 14. Be2 {[%clk 00:10:41]} {[%emt 00:00:38]}
Nc6 {[%clk 00:04:29]} {[%emt 00:00:53]} 15. Qc3 {[%clk 00:10:30]} {[%emt
00:00:39]} O-O-O {[%clk 00:04:26]} {[%emt 00:00:04]} 16. Bd3 {[%clk 00:09:10]}
{[%emt 00:00:55]} Bg6 {[%clk 00:03:50]} {[%emt 00:00:41]} 17. Nd4 {[%clk
00:08:27]} {[%emt 00:00:42]} Qf6 {[%clk 00:02:49]} {[%emt 00:01:03]} 18. Rd2
{[%clk 00:06:37]} {[%emt 00:01:53]} Nxd4 {[%clk 00:01:55]} {[%emt 00:00:58]} 19.
Qxd4 {[%clk 00:06:05]} {[%emt 00:00:46]} Qxd4 {[%clk 00:01:55]} 20. exd4 {[%clk
00:06:06]} Rde8 {[%clk 00:01:29]} {[%emt 00:00:19]} 21. Bxg6 {[%clk 00:06:01]}
{[%emt 00:00:10]} hxg6 {[%clk 00:01:28]} 22. Rh7 {[%clk 00:05:43]} {[%emt
00:00:18]} Re7 {[%clk 00:01:26]} {[%emt 00:00:28]} 23. Kc2 {[%clk 00:05:29]}
{[%emt 00:00:08]} Kd7 {[%clk 00:01:27]} 24. Kd3 {[%clk 00:05:29]} f5 {[%clk
00:01:21]} 25. Rxe7+ {[%clk 00:05:25]} Kxe7 {[%emt 00:00:08]} 26. Re2+ {[%clk
00:05:23]} {[%emt 00:00:04]} Kf6 {[%clk 00:01:21]} 27. d5 {[%clk 00:05:20]}
{[%emt 00:00:06]} Rh8 {[%clk 00:01:10]} {[%emt 00:00:09]} 28. b4 {[%clk
00:04:50]} {[%emt 00:00:32]} Kf7 {[%clk 00:00:55]} {[%emt 00:00:20]} 29. c5
{[%clk 00:04:32]} {[%emt 00:00:19]} dxc5 {[%clk 00:00:47]} {[%emt 00:00:08]} 30.
bxc5 {[%clk 00:04:32]} {[%emt 00:00:06]} Rh1 {[%clk 00:00:44]} {[%emt
00:00:32]} 31. Rc2 {[%clk 00:01:35]} {[%emt 00:02:31]} Ra1 {[%clk 00:00:27]}
{[%emt 00:00:19]} 32. c6 {[%clk 00:01:23]} {[%emt 00:00:11]} Rxa3+ {[%clk
00:00:09]} {[%emt 00:00:20]} 33. Kd4 {[%clk 00:01:24]} bxc6 {[%clk 00:00:03]}
{[%emt 00:00:09]} 34. Rxc6 {[%clk 00:01:24]} {[%emt 00:00:34]} Ra4+ {[%clk
00:00:03]} 35. Kc5 {[%clk 00:01:16]} {[%emt 00:00:03]} Ra2 {[%clk 00:00:05]} 36.
Rxc7+ {[%clk 00:01:16]} Kf6 {[%clk 00:00:06]} 37. Rc6+ {[%clk 00:00:56]} {[%emt
00:00:06]} Ke7 {[%clk 00:00:04]} {[%emt 00:00:03]} 38. Rxg6 {[%clk 00:00:54]}
{[%emt 00:00:04]} Rxf2 {[%clk 00:00:05]} 39. Rxg5 {[%clk 00:00:53]} {[%emt
00:00:06]} Rxg2 {[%clk 00:00:05]} 40. Rg7+ {[%clk 00:00:27]} {[%emt 00:00:38]}
Kf8 {[%clk 00:00:04]} 41. Rxa7 {[%clk 00:00:20]} {[%emt 00:00:14]} Rxg3 {[%clk
00:00:05]} 42. Kd6 {[%clk 00:00:19]} {[%emt 00:00:03]} Ke8 {[%clk 00:00:05]} 43.
Ra8+ {[%clk 00:00:18]} Kf7 {[%clk 00:00:06]} 44. Ke5 {[%clk 00:00:19]} Rg5
{[%clk 00:00:07]} 45. Ra7+ {[%clk 00:00:19]} {[%emt 00:00:03]} Ke8 {[%clk
00:00:07]} 46. Ke6 {[%clk 00:00:19]} Rg6+ {[%clk 00:00:08]} 47. Kxf5 {[%clk
00:00:20]} {[%emt 00:00:08]} Rb6 {[%clk 00:00:09]} 48. Ke5 {[%clk 00:00:20]}
{[%emt 00:00:04]} Rh6 {[%clk 00:00:09]} 49. Kd4 {[%clk 00:00:18]} Kd8 {[%clk
00:00:10]} 50. Kc5 {[%clk 00:00:19]} {[%emt 00:00:04]} Kc8 {[%clk 00:00:11]} 51.
Rg7 {[%clk 00:00:19]} Kd8 {[%clk 00:00:13]} 52. d6 {[%clk 00:00:17]} {[%emt
00:00:04]} Rh1 {[%clk 00:00:13]} {[%emt 00:00:07]} 1/2-1/2